Cogmind - Beta 17.1 @@@ ROGUE MODE // 2026.09.23 @ 21:57:39 Player: Caluan Result: Destroyed by D-53 Grenadier with Mini Grenade Launcher Performance ------------- Evolutions (0) 0 Regions Visited (2) 400 Robots Destroyed (14) 70 Value Destroyed (192) 192 Prototype IDs (0) 0 Alien Tech Used (0) 0 Bonus (0) 0 TOTAL SCORE: 662 Bonus ------- None Cogmind --------- Core Integrity 0/250 Matter 243/300 Energy 100/100 System Corruption 0% Temperature Cool (0) Movement Core (1350) Ox26 Location -10/Mines Parts ------- > --- POWER (1) -------- (None) > --- PROPULSION (2) --- (None) > --- UTILITY (2) ------ Huge Storage Unit > --- WEAPON (2) ------- (None) > --- INVENTORY (25) --- Light Ion Engine Light Treads High-capacity Matter Pod (0) Signal Interpreter Improved Terrain Scanner Seismic Detector Medium Laser Small Laser Light Assault Rifle Improved Light Cannon Grenade Launcher Peak State ------------ > --- POWER ------------ Ion Engine > --- PROPULSION ------- Light Treads Compact Wheel > --- UTILITY ---------- Improved Heat Sink Huge Storage Unit > --- WEAPON ----------- Light Assault Rifle Light Cannon > --- INVENTORY -------- Light Ion Engine Light Treads Signal Interpreter Improved Terrain Scanner Seismic Detector Medium Laser Small Laser Grenade Launcher [Rating: 10] Favorites ----------- Power Ion Engine Engine Ion Engine Propulsion Light Treads Treads Light Treads Wheel Compact Wheel Utility Huge Storage Unit Device Improved Heat Sink Storage Huge Storage Unit Weapon Light Assault Rifle Energy Gun Medium Laser Energy Cannon Beam Cannon Ballistic Gun Light Assault Rifle Ballistic Cannon Light Cannon Build | -11 -10 -10 ------- Run | Yrd Mat Min Slots Evolved . | . . . Power . | . . . Propulsion . | . . . Utility . | . . . Weapon . | . . . Parts Attached 15 | 7 5 3 Power 1 | 1 . . Engine 1 | 1 . . Core . | . . . Reactor . | . . . Propulsion 3 | 2 1 . Treads 2 | 2 . . Leg . | . . . Wheel 1 | . 1 . Hover . | . . . Flight . | . . . Utility 4 | 2 2 . Device 2 | 1 1 . Storage 2 | 1 1 . Processor . | . . . Hackware . | . . . Protection . | . . . Artifact . | . . . Weapon 7 | 2 2 3 Energy Gun 1 | 1 . . Energy Cannon 1 | . 1 . Ballistic Gun 1 | 1 . . Ballistic Cannon 4 | . 1 3 Launcher . | . . . Special Weapon . | . . . Impact Weapon . | . . . Slashing Weapon . | . . . Piercing Weapon . | . . . Special Melee Weapon . | . . . Unidentified Prototypes . | . . . Parts Lost 8 | . . 8 Power 1 | . . 1 Propulsion 2 | . . 2 Utility 1 | . . 1 Weapon 4 | . . 4 Highest Loss Streak 8 | . . 8 To Critical Strikes . | . . . Average Backups 9 | 3 8 12 Power . | . 1 1 Propulsion . | . 1 1 Utility 2 | 1 2 4 Weapon 4 | . 3 6 Tool/Special . | . . . Unused Backups 7 | . . 7 Power 1 | . . 1 Propulsion . | . . . Utility 3 | . . 3 Weapon 3 | . . 3 Tool/Special . | . . . Average Slot Usage (%) 92 | . 90 95 Engine 13 | . 14 12 Treads 19 | . 22 12 Wheel 8 | . 5 13 Device 7 | . 4 13 Storage 14 | . 14 14 Energy Gun 2 | . 3 . Energy Cannon 2 | . 3 . Ballistic Gun 13 | . 14 12 Ballistic Cannon 9 | . 7 14 Peak Build Rating 10 | 7 10 10 Average Rating 7 | 4 7 9 On Entrance 5 | . 6 10 Avg Prop Armor Cover (%) 12 | . 12 12 Naked Turns . | . . . Heaviest Build 90 | 13 90 90 Greatest Support 40 | 40 40 16 Greatest Overweight (x) 5 | . 5 5 Average Overweight (x) 2 | . 1 5 Largest Inventory Capacity 25 | 8 25 25 Average Capacity 16 | 5 15 25 Most Carried 13 | 5 13 13 Average Carried 9 | 3 8 12 Final Capacity 25 | 8 25 25 Final Carried 13 | 5 13 11 Class Distribution -------------------- 100% | Mutant Dominant Class ---------------- Mutant | -10/Materials Mutant | -10/Mines Resources | -11 -10 -10 ----------- Run | Yrd Mat Min Matter Collected 406 | 279 127 . Remotely . | . . . Salvage Created 345 | 133 212 . Parts 22 | 10 12 . Haulers Intercepted 1 | . 1 . Recyclers Shooed . | . . . Parts Field Recycled . | . . . Retrieved Matter . | . . . Parts Self-Destructed . | . . . Prevented . | . . . Parts Restored . | . . . Kills | -11 -10 -10 ------- Run | Yrd Mat Min Combat Hostiles Destroyed 7 | . 7 . Guns 2 | . 2 . Cannons 5 | . 5 . Classes Destroyed 6 | 2 4 . Tunneler 3 | 3 . . Hauler 1 | . 1 . Recycler 1 | 1 . . Watcher 2 | . 2 . Swarmer 5 | . 5 . Grunt 2 | . 2 . Best Kill Streak 3 | 2 3 . Combat Bots Only 3 | . 3 . Max Kills in Single Turn 2 | 1 2 . Gunslinging . | . . . Exploded . | . . . Melee . | . . . Uniques/NPCs Destroyed . | . . . Combat | -11 -10 -10 -------- Run | Yrd Mat Min Hostile Shots Fired 54 | . 28 26 Missed 11 | . 9 2 Hits 43 | . 19 24 Projectile 43 | . 19 24 AOE 25 | . . 25 Damage Taken 1166 | . 237 929 Core 268 | . 51 217 Absorbed by Shields . | . . . Core Remaining (%) 100 | 100 . . Volleys Fired 38 | 9 21 8 Largest 2 | 2 2 2 Hottest 70 | 70 70 66 Shots Fired 75 | 18 42 15 Gun 42 | 18 23 1 Cannon 33 | . 19 14 Launcher . | . . . Special . | . . . Kinetic 64 | 9 40 15 Thermal 11 | 9 2 . Explosive . | . . . Electromagnetic . | . . . Robot Hit Streak 10 | 10 6 3 Robot Miss Streak 3 | 1 3 2 Penetration Max . | . . . Secondary Targets . | . . . Shots Hit Robots 43 | 12 23 8 Core Hits 24 | 6 16 2 Critical Kills . | . . . Critical Parts Destroyed . | . . . Critical Strikes 4 | 1 3 . Burn 1 | 1 . . Blast 3 | . 3 . Melee Attacks . | . . . Impact . | . . . Slashing . | . . . Piercing . | . . . Sneak Attacks . | . . . Combat Hostiles . | . . . Follow-up Attacks . | . . . Damage Inflicted 691 | 135 369 187 Guns 227 | 135 92 . Cannons 443 | . 258 185 Explosions . | . . . Melee . | . . . Ramming 21 | . 19 2 Kinetic 569 | 47 337 185 Thermal 101 | 88 13 . Explosive . | . . . Electromagnetic . | . . . Impact . | . . . Slashing . | . . . Piercing . | . . . Highest Corruption . | . . . Average Corruption . | . . . Corruption Purged . | . . . Corruption Blocked . | . . . Overload Shots . | . . . Overflow Damage 4 | . . 4 Projectiles 4 | . . 4 Explosions . | . . . Melee . | . . . Knockbacks 3 | . . 3 Impact . | . . . Kinetic 2 | . . 2 Secondary 1 | . . 1 Self-Inflicted Damage 5 | . 4 1 Shots . | . . . Rammed 5 | . 4 1 Targets Rammed 5 | . 4 1 Kicked . | . . . Crushed . | . . . Highest Temperature 50 | 50 46 . Average Temperature 19 | 24 15 . Received Heat Transfer 45 | . 45 . Siege Activations . | . . . Martial Activations . | . . . Shielding Activations . | . . . Robots Disrupted . | . . . Combat Hostiles . | . . . Robots Corrupted . | . . . Combat Hostiles . | . . . Parts Fried . | . . . Impact Corruptions . | . . . Robots Melted . | . . . Combat Hostiles . | . . . Parts Melted 2 | 2 . . Heat Transferred 370 | 333 37 . Parts Sabotaged . | . . . Parts Stolen . | . . . Parts Stripped . | . . . Power Chain Reactions . | . . . Alert | -11 -10 -10 ------- Run | Yrd Mat Min Maximum Alert Level . | . . . Low Security (%) 100 | 100 100 100 Level 1 . | . . . Level 2 . | . . . Level 3 . | . . . Level 4 . | . . . Level 5 . | . . . High Security . | . . . Max Security . | . . . Peak Influence 62 | 10 62 5 Initial 5 | . . 5 Average 8 | 1 14 . Influence Increases 207 | 20 186 1 Destroy 0b10 Robot/C 140 | . 140 . Destroy 0b10 Robot/NC 35 | 20 15 . Destroy Leader 26 | . 26 . Successful Hack 5 | . 5 . Destroy Structure 1 | . . 1 Influence Decreases 207 | 20 172 15 Entered New Map 9 | . . 9 Time Decay 197 | 20 172 5 Lost Part 1 | . . 1 Squads Dispatched 1 | . 1 . Investigation 1 | . 1 . Extermination . | . . . Reinforcement . | . . . Assault . | . . . Garrison . | . . . Intercept . | . . . Searches Triggered . | . . . Construction Impeded . | . . . Haulers Reinforced . | . . . Active Scanning Responses . | . . . Cargo Convoy Interrupts . | . . . Stealth | -11 -10 -10 --------- Run | Yrd Mat Min Distress Signals . | . . . Communications Jammed . | . . . Distress Signals . | . . . Times Spotted 14 | . 12 2 Peak Tracking Total 3 | . 3 2 Tactical Retreats . | . . . Traps | -11 -10 -10 ------- Run | Yrd Mat Min Traps Triggered 1 | . 1 . Indirectly . | . . . Trap Hack Attempts . | . . . Triggered . | . . . Disarmed . | . . . Reprogrammed . | . . . Reused . | . . . Traps Extracted . | . . . Installed . | . . . Triggered . | . . . Machines | -11 -10 -10 ---------- Run | Yrd Mat Min Machines Disabled . | . . . Max in Single Turn . | . . . Machines Repaired . | . . . Machines Dismantled . | . . . Machines Sabotaged . | . . . Overloaded Fab Kills . | . . . Hacking | -11 -10 -10 --------- Run | Yrd Mat Min Machines Accessed 5 | . 5 . Terminals 5 | . 5 . Fabricators . | . . . Repair Stations . | . . . Recycling Units . | . . . Scanalyzers . | . . . Garrison Access . | . . . Total Hacks 8 | . 8 . Successful 2 | . 2 . Failed 6 | . 6 . Catastrophic 1 | . 1 . Database Lockouts . | . . . Manual 8 | . 8 . Terminals 8 | . 8 . Fabricators . | . . . Repair Stations . | . . . Recycling Units . | . . . Scanalyzers . | . . . Garrison Access . | . . . Terminal Hacks . | . . . Fabricator Hacks . | . . . Repair Station Hacks . | . . . Recycling Unit Hacks . | . . . Scanalyzer . | . . . Garrison Access Hacks . | . . . Unauthorized Hacks 2 | . 2 . Terminals 2 | . 2 . Botnet 2 | . 2 . Fabricators . | . . . Repair Stations . | . . . Recycling Units . | . . . Scanalyzers . | . . . Garrison Access . | . . . Data Cores Recovered . | . . . Used . | . . . Hacking Detections 4 | . 4 . Full Trace Events 1 | . 1 . Feedback Events . | . . . Feedback Blocked . | . . . Robot Schematics Acquired . | . . . Robots Built . | . . . Authchips . | . . . Time . | . . . Total Robot Build Rating . | . . . Part Schematics Acquired . | . . . Parts Built . | . . . Authchips . | . . . Time . | . . . Total Part Build Rating . | . . . Part Studies Acquired . | . . . Parts Repaired . | . . . Time . | . . . Parts Recycled . | . . . Recycled Matter . | . . . Retrieved Matter . | . . . Retrieved Components . | . . . Parts Scanalyzed . | . . . Part Schematics Acquired . | . . . Parts Damaged . | . . . Bothacking | -11 -10 -10 ------------ Run | Yrd Mat Min Used RIF Installer . | . . . Robots Hacked . | . . . Non-combat . | . . . Combat . | . . . Robot Hacks Applied . | . . . Relay Couplers Released . | . . . Fabnet Peak Effective % . | . . . Robots Rewired . | . . . Allies Hacked . | . . . Hacks Repelled . | . . . Allies | -11 -10 -10 -------- Run | Yrd Mat Min Total Allies . | . . . Largest Group . | . . . Highest-Rated Group . | . . . Highest-Rated Ally . | . . . Total Orders . | . . . Ally Attacks . | . . . Total Damage . | . . . Kills . | . . . Allies Corrupted . | . . . Allies Melted . | . . . Intel | -11 -10 -10 ------- Run | Yrd Mat Min Active Infowar (turns) 17 | 17 . . Seismic 17 | 17 . . Robot Analysis Total . | . . . Derelict Logs Recovered . | . . . Drone Launches . | . . . Drone Recoveries . | . . . Exploration | -11 -10 -10 ------------- Run | Yrd Mat Min Turns Passed 1450 | 205 866 379 Spaces Moved 774 | 105 468 201 Core 8 | 8 . . Treads 382 | 97 285 . Legs . | . . . Wheels 384 | . 183 201 Hover . | . . . Flight . | . . . Fastest Speed 50 | 50 160 175 Average Speed 166 | 151 165 175 Slowest Speed 175 | 160 175 175 Overloaded Moves . | . . . Propulsion Burnouts . | . . . Robots Hopped . | . . . Potential Cave-ins . | . . . Cave-ins Triggered . | . . . Exploration Rate (%) 41 | 4 72 49 Regions Visited 2 Branch Regions 1 Pre-discovered Areas . | . . . Known Exits Taken . | . . . Unknown Exits Taken 2 | 1 1 . Scrap Searched . | . . . Spaces Dug . | . . . Terrain Destroyed 2 | . . 2 Melee . | . . . Projectile 2 | . . 2 AOE . | . . . Terrain Rammed . | . . . Walls Destroyed . | . . . Machines Disabled . | . . . Actions | -11 -10 -10 --------- Run | Yrd Mat Min Total 865 | 135 517 213 Wait 13 | 4 9 . Move 772 | 104 467 201 Hop . | . . . Pick Up 19 | 10 9 . Fast Attach 3 | 1 2 . Attach 9 | 6 1 2 Detach 1 | 1 . . Swap 3 | . 2 1 Drop 2 | . 2 . Fire 38 | 9 21 8 Melee . | . . . Ram 2 | . 1 1 Kick . | . . . Crush 3 | . 3 . Escape Stasis . | . . . Rewire . | . . . Trap . | . . . Miscellaneous . | . . . Route ------- -11/Scrapyard -10/Materials (discovered 2 exits: [*Mat] / [*Min]) -10/Mines (discovered 2 exits: [*Mat] / [*Sub]) History --------- Turn | Location | Event 25 | -11/Scrapyard | Discovered new exit (range 15) 206 | -11/Scrapyard | Entered Materials 302 | -10/Materials | Build established: Mutant 486 | -10/Materials | Discovered new exit (range 14) 1044 | -10/Materials | Discovered new exit (range 6) 1072 | -10/Materials | Entered Mines 1097 | -10/Mines | Discovered new exit (range 8) 1309 | -10/Mines | Discovered new exit (range 9) 1394 | -10/Mines | Assembled infested the area 1442 | -10/Mines | Core integrity fell below 50% 1448 | -10/Mines | Core integrity fell below 20% 1451 | -10/Mines | Destroyed by D-53 Grenadier with Mini Grenade Launcher Last Messages --------------- 01425_ D-53 Grenadier unfolds itself. 01425_ Ion Engine destroyed. 01428_ Lgt. Treads destroyed. 01430_ K-01 Serf collects debris. 01430_ K-01 Serf knocked back. 01431_ The unstable cave ceiling collapses. 01433_ Lgt. Cannon destroyed. 01434_ D-53 Grenadier knocked back. 01438_ The unstable cave ceiling collapses. 01438_ Com. Wheel destroyed. 01439_ Imp. Light Cannon destroyed. 01441_ U-05 Engineer lays Concrete. 01441_ Destroyed Lgt. Deuterium Engine. 01442_ Imp. Heat Sink destroyed. 01442_ U-05 Engineer lays Concrete. 01443_ R-06 Scavenger destroyed. 01444_ U-05 Engineer lays Concrete. 01448_ U-05 Engineer destroyed. 01449_ K-01 Serf collects debris. 01449_ Imp. Light Cannon destroyed. Map ----- +----------------------------------------------------+ | ?## #?????????# ######????????????? | | ??## #?????????# #????????????? | | ???## #?????????# #????????????? | | ????# #?????????###### #????????????? | | ????# ######?????????# #????????????? | | ???## ## ##????????# #????????????? | | #### # ####?????# ##???????????? | | ##????# ##??????????? | | #### ### ###### ##?????????? | | ???# ### #?????????? | | ???# ## #?????????? | | ???# ## ### #### ##?????????? | | ???# # ###?# #?## #??????????? | | ???# # ##???# #?# ##?????????? | | ???# ##????# #?# ##????????? | | ??## #####?# ### ##???????? | | ?## #?# ##??????? | | ## ## #?##### ##?????? | | #?????# ## """ ##????? | | ### ##??### """ #????? | | ##?# ## ;# d """ #????? | | ##??# %% k ! #????? | | #???# % d ##????? | | ##??## #### ##?????? | | #????###??# ##?????? | | #??????????##### @ #?????? | | ##?????????????# ##????? | | #?????????????# #????? | | ## #????????????## ##????? | | ## #?????????????## ###?????? | | ?# #?????????????# ##???????? | | ? #????????????### #????????? | | ? #?????????????## ##????????? | | ? #??????????????# #?????????? | | ? #?????????????# ##????????? | | ? ## #?????????????# #????????? | | ? ?# ##?????????????# #????????? | | ?? ?? ???????????????# #????????? | | ??? ??? ?????????????????# ????????? | | ??? ?????????????????????## #???????? | | ??????????????????????????### #???????? | | ????????????????????????????? #???????? | | ????????????????????????????? #???????? | | ????????????????????????????? #???????? | | ?????????????????????????????$ ???????? | | ?????????????????????????????##???????? | | ??????????????????????????????????????? | | ??????????????????????????????????????? | | ??????????????????????????????????????? | | ??????????????????????????????????????? | +----------------------------------------------------+ Best States ------------- Heat Dissipation 39 Energy Generation 10 Energy Capacity 250 Matter Stores 300 Matter Capacity 300 Sight Range 16 Terrain Scan Density 10 Evasion (%) 40 Recoil Reduction 2 Item Schematics ----------------- None Robot Schematics ------------------ None Fabricated ------------ Nothing Repaired ---------- Nothing Studied --------- None Alien Tech Used ----------------- None Achievements -------------- None Challenges ------------ None Game ------ Seed InterceptDecoderBooster Manual? 0 Play Time 00:07:59 Cumulative 330.8 hours Start 2026.09.23 @ 21:49:44 End 2026.09.23 @ 21:57:39 Sessions 1 Manual Loads 0 Difficulty Rogue Special Mode None Game No. 372 Rogue 372 Adventurer 0 Explorer 0 Win Type - Total 4 Types 3/0/1/0/0/0/0/0/0/0 Lore% 57 Gallery% 60 Achievement% 48 Wizard Run 0 Options --------- Layout 1 ASCII 0 Keyboard 0 Movement Numpad Keybinds 0 Fullscreen 2 Font 24/Smallcaps Map View 50x35 Zoom Use 0% Tactical HUD 1 Map Filters NONE Filters NONE Steam 1 RUN: 1cbaabf8-7f1e-4033-b918-b78dea5c544e